[Event "German Bundesliga 2022-23"]
[Site "Germany"]
[Date "2022.10.23"]
[Round "2.10"]
[White "Ragger, Markus"]
[Black "Fressinet, Laurent"]
[Result "1/2-1/2"]
[ECO "C54"]
[WhiteElo "2632"]
[BlackElo "2622"]
[Annotator "TA"]
[PlyCount "44"]
[EventDate "2022.10.21"]
[EventType "team-tourn"]
[EventCountry "GER"]
[SourceTitle "playchess.com"]
[Source "ChessBase"]
[SourceQuality "1"]
[TimeControl "40/6000+30:3000+30"]

{[%evp 17,44,0,0,0,0,0,0,0,12,2,12,0,0,0,12,10,8,12,7,6,6,0,18,21,16,0,0,0,0]} 1. e4 {[%emt 0:00:02]} e5 {[%emt 0:00:49]} 2. Nf3 {[%emt 0:00:07]} Nc6 {[%emt 0:00:08]} 3. Bc4 {[%emt 0:00:17]} Bc5 {[%emt 0:00:20]} 4. c3 {[%emt 0:00:29]} Nf6 {[%emt 0:00:34]} 5. d4 {[%emt 0:00:30]} exd4 {[%emt 0:00:06]} 6. e5 {[%emt 0:00:28]} d5 {[%emt 0:00:20]} 7. Bb5 {[%emt 0:00:27]} Ne4 {[%emt 0:00:21]} 8. cxd4 {[%emt 0:00:09]} Bb6 {[%emt 0:00:18]} 9. Nc3 {[%emt 0:02:18]} O-O {[%emt 0:05:37] The position is equal.} 10. Be3 {[%emt 0:00:59] C54: Giuoco Piano: 4 c3 Nf6, main lines with 5 d4 and 5 d3.} Bg4 {[%emt 0:02:57]} 11. h3 {[%emt 0:03:44]} Bh5 {[%emt 0:01:51][%cal Bg4h5,Bh5g6,Bg6d3][%mdl 32]} 12. Qc2 {[%emt 0:00:09]} Bg6 {[%emt 0:03:22] [#] And now ...Nxc3 would win. 12...Nxc3 is more advanced technology.} 13. Qb3 {[%emt 0:03:16]} Ne7 {[%emt 0:04:17]} 14. O-O {[%emt 0:01:19]} c6 {[%emt 0:04:17]} 15. Bd3 {[%emt 0:01:50]} Nd2 {[%emt 0:02:43]} 16. Nxd2 {[%emt 0:01:50] [#] Bxg6 is the strong threat.} Bxd3 {[%emt 0:00:06]} 17. Rfe1 {[%emt 0:01:18]} Bf5 $5 {[%emt 0:06:29][%mdl 4] A promising side line.} 18. Na4 {[%emt 0:13:13]} Ng6 {[%emt 0:05:58]} 19. Rac1 {[%emt 0:13:09]} f6 {[%emt 0:07:59] [#]} 20. Nxb6 $146 {[%emt 0:06:01]} ({Predecessor:} 20. Nc5 fxe5 21. Nxb7 Qf6 22. dxe5 Nxe5 23. Nc5 Bxc5 24. Bxc5 {0-1 (40) Robson,R (2681)-Aronian,L (2785) Saint Louis 2022}) 20... Qxb6 {[%emt 0:03:52]} 21. exf6 {[%emt 0:04:52]} Rxf6 {[%emt 0:01:35]} 22. Qxb6 {[%emt 0:01:16]} axb6 {[%emt 0:00:10] A balanced but interesting game.  Weighted Error Value: White=0.03 (flawless) /Black=0.02 (flawless)} 1/2-1/2

[Event "German Bundesliga 2022-23"]
[Site "Germany"]
[Date "2022.10.23"]
[Round "2.10"]
[White "Kraemer, Martin"]
[Black "Bluebaum, Matthias"]
[Result "0-1"]
[ECO "E06"]
[WhiteElo "2579"]
[BlackElo "2647"]
[Annotator "TA"]
[PlyCount "126"]
[EventDate "2022.10.21"]
[EventType "team-tourn"]
[EventCountry "GER"]
[SourceTitle "playchess.com"]
[Source "ChessBase"]
[SourceQuality "1"]
[TimeControl "40/6000+30:3000+30"]

{[%evp 12,126,31,14,22,11,24,0,0,0,0,-6,-10,-11,-12,-12,0,-10,-10,-10,-9,-22,-20,-25,-19,-20,-13,-25,-27,-16,-11,-22,-18,-39,-33,-101,-36,-39,-31,-95,-98,-101,-100,-158,-152,-167,-167,-160,-167,-152,-155,-170,-170,-170,-170,-175,-175,-173,-173,-173,-170,-170,-152,-158,-158,-172,-145,-252,-234,-251,-251,-231,-171,-170,-165,-588,-542,-417,-170,-609,-566,-976,-946,-1482,-1467,-1375,-1608,-1173,-1233,-1636,-1866,-2052,-1892,-1939,-1894,-1331,-1141,-747,-1763,-2845,-2254,-3295,-1462,-2930,-2590,-2214,-1997,-1907,-2074,-5634,-3897,-2105,-5073,-2616,-2385,-1860,-1745]} 1. Nf3 {[%emt 0:00:02]} d5 {[%emt 0:00:26]} 2. g3 {[%emt 0:00:11]} Nf6 {[%emt 0:01:45]} 3. Bg2 {[%emt 0:00:07]} e6 {[%emt 0:00:09]} 4. O-O {[%emt 0:01:36]} Be7 {[%emt 0:00:27]} 5. d4 {[%emt 0:00:59]} O-O {[%emt 0:00:10]} 6. c4 {[%emt 0:00:26]} c6 {[%emt 0:00:38]} 7. Nc3 {[%emt 0:11:38]} a5 {[%emt 0:00:34] E06: Closed Catalan: Early deviations.} 8. b3 {[%emt 0:03:04]} b6 {[%emt 0:04:59]} 9. Qd3 {[%emt 0:13:25]} Ba6 {[%emt 0:04:19] The position is equal.} 10. Rd1 {[%emt 0:14:08]} b5 {[%emt 0:07:17][%cal Rb5c4]} 11. cxb5 {[%emt 0:11:15]} cxb5 {[%emt 0:00:10]} 12. Nxb5 {[%emt 0:00:04]} Qb6 {[%emt 0:07:43]} 13. a4 {[%emt 0:00:05]} Nc6 {[%emt 0:00:02] [#]} 14. Bg5 $146 {[%emt 0:04:02]} ({Predecessor:} 14. Ne1 Na7 15. Ba3 Bxa3 16. Rxa3 Nxb5 17. axb5 Bxb5 18. Qd2 Rfb8 19. Rda1 Bc6 20. Qc3 {½-½ (46) Injac,T (2389)-Krasteva,B (2269) Prague 2022}) 14... Na7 {[%emt 0:12:40][%cal Ra7b5]} 15. Bxf6 {[%emt 0:04:55]} Bxf6 {[%emt 0:00:33]} 16. e3 {[%emt 0:17:53]} Nxb5 {[%emt 0:00:28]} 17. axb5 {[%emt 0:00:01]} Bxb5 {[%emt 0:00:08]} 18. Qd2 {[%emt 0:00:00]} Rfb8 {[%emt 0:04:46]} 19. Rdb1 {[%emt 0:03:37]} Be7 {[%emt 0:03:51]} 20. Qd1 {[%emt 0:01:05]} Ra7 {[%emt 0:05:23]} 21. Bf1 {[%emt 0:00:52]} Be8 {[%emt 0:05:57]} 22. Bd3 {[%emt 0:05:41]} Rc7 {[%emt 0:00:31]} 23. Rc1 {[%emt 0:04:32]} ({Better is} 23. Ne1 $15) 23... Rbc8 {[%emt 0:03:55]} (23... Rxc1 $17 24. Rxc1 Qxb3) 24. Rxc7 $15 {[%emt 0:02:00]} Rxc7 {[%emt 0:00:10]} 25. e4 {[%emt 0:08:11]} (25. Qd2 $15) 25... dxe4 $17 {[%emt 0:04:36] White is now going downhill.} 26. Bxe4 {[%emt 0:00:03]} Rc3 {[%emt 0:00:07]} 27. Rc1 {[%emt 0:01:50]} (27. Ne5 $142) 27... Rxc1 $1 {[%emt 0:05:05] Black has more active pieces.} ({Resist} 27... Qxb3 28. Qxb3 Rxb3 29. Rc8 $18) (27... Rxb3 28. Rc8 Kf8 29. Ne5 $16) 28. Qxc1 {[%emt 0:00:01]} Qxb3 {[%emt 0:01:13]} 29. Qc8 {[%emt 0:00:36]} Qa4 {[%emt 0:00:55]} 30. Ne5 {[%emt 0:01:00]} Bf8 {[%emt 0:00:46]} 31. Nc6 {[%emt 0:02:07]} Bxc6 {[%emt 0:00:46]} 32. Bxc6 {[%emt 0:00:25]} Qxd4 {[%emt 0:00:20] Hoping for ...a4.} 33. Qd7 {[%emt 0:00:25]} Qxd7 {[%emt 0:05:29]} 34. Bxd7 $19 {[%emt 0:00:02][%mdl 4096] Endgame KB-KB} Bc5 {[%emt 0:00:06]} 35. Kf1 {[%emt 0:00:48]} Kf8 {[%emt 0:00:10]} 36. Ke2 {[%emt 0:00:17]} Ke7 {[%emt 0:00:05]} 37. Ba4 {[%emt 0:00:01]} Kd6 {[%emt 0:00:09]} 38. f3 {[%emt 0:00:27]} Kd5 {[%emt 0:01:47]} 39. Kd3 {[%emt 0:01:22] [#]} (39. Be8 $17) 39... Bg1 $1 {[%emt 0:00:04]} 40. h3 {[%emt 0:00:04]} Bf2 {[%emt 0:04:39]} 41. g4 {[%emt 0:50:05]} Ke5 {[%emt 0:50:29]} 42. Be8 {[%emt 0:01:17]} f6 {[%emt 0:03:47]} 43. Bd7 $2 {[%emt 0:00:23] [#]} (43. Ke2 Bb6 44. Bd7) 43... g5 $1 {[%emt 0:05:55]} 44. Ke2 {[%emt 0:00:00]} Bb6 {[%emt 0:00:00]} 45. Kd3 $2 {[%emt 0:00:00]} (45. Kf1) 45... Kf4 {[%emt 0:00:00] Black is clearly winning.} 46. Ke2 {[%emt 0:00:00]} e5 {[%emt 0:00:00]} 47. Bc6 {[%emt 0:00:00]} Kg3 {[%emt 0:00:00]} 48. Kd3 {[%emt 0:00:00]} Kxh3 {[%emt 0:00:00]} 49. Ke4 {[%emt 0:00:00]} Kg3 {[%emt 0:00:00]} 50. Kf5 {[%emt 0:00:00]} Bd4 {[%emt 0:00:00]} 51. Ke4 {[%emt 0:00:00]} Kf2 {[%emt 0:00:00]} 52. Bb5 {[%emt 0:00:00]} Bb6 {[%emt 0:00:00]} 53. Ba4 {[%emt 0:00:00]} Ke2 {[%emt 0:00:00] aiming for ...Be3.} 54. Bb5+ {[%emt 0:00:00]} Kd2 {[%emt 0:00:00]} 55. Bc6 {[%emt 0:00:00]} Kc3 {[%emt 0:00:00]} 56. Bd7 {[%emt 0:00:00]} Kb4 {[%emt 0:00:00]} 57. Kd3 {[%emt 0:00:00]} a4 {[%emt 0:00:00]} 58. Be6 {[%emt 0:00:00]} a3 {[%emt 0:00:00][%cal Of6f5]} 59. Kc2 {[%emt 0:00:00]} Bd4 {[%emt 0:00:00][%cal Of6f5] Strongly threatening ...f5!} 60. Kd3 {[%emt 0:00:00]} f5 {[%emt 0:00:00]} 61. gxf5 {[%emt 0:00:00]} h5 {[%emt 0:00:00][%cal Bh7h5,Bh5h4][%mdl 32]} 62. f6 {[%emt 0:00:00]} h4 {[%emt 0:00:00][%cal Oh4h3] And now ...h3! would win.} 63. Kc2 {[%emt 0:00:00]} Bc5 {[%emt 0:00:00] Weighted Error Value: White=0.74/Black=0.02 (flawless)} 0-1

[Event "German Bundesliga 2022-23"]
[Site "Germany"]
[Date "2022.10.23"]
[Round "2.10"]
[White "Krassowizkij, Jaroslaw"]
[Black "Bjerre, Jonas Buhl"]
[Result "0-1"]
[ECO "E49"]
[WhiteElo "2439"]
[BlackElo "2612"]
[Annotator "RC"]
[PlyCount "112"]
[EventDate "2022.10.21"]
[EventType "team-tourn"]
[EventCountry "GER"]
[SourceTitle "playchess.com"]
[Source "ChessBase"]
[SourceQuality "1"]
[TimeControl "40/6000+30:3000+30"]

1. c4 {[%emt 0:00:03]} e6 {[%emt 0:03:51]} 2. Nc3 {[%emt 0:00:30]} d5 {[%emt 0:02:58]} 3. d4 {[%emt 0:00:09]} Bb4 {[%emt 0:00:40]} 4. e3 {[%emt 0:08:21]} Nf6 {[%emt 0:00:50]} 5. a3 {[%emt 0:00:45]} Bxc3+ {[%emt 0:00:41]} 6. bxc3 {[%emt 0:00:04]} c5 {[%emt 0:00:47]} 7. cxd5 {[%emt 0:03:14]} exd5 {[%emt 0:00:06]} 8. Bd3 {[%emt 0:00:25]} O-O {[%emt 0:00:11]} 9. Ne2 {[%emt 0:00:23]} b6 {[%emt 0:00:04]} 10. O-O {[%emt 0:07:58]} Ba6 {[%emt 0:03:11]} 11. f3 {[%emt 0:00:18]} Bxd3 {[%emt 0:01:26]} 12. Qxd3 {[%emt 0:00:05]} Re8 {[%emt 0:01:03]} 13. Ng3 {[%emt 0:00:06]} Nc6 {[%emt 0:00:54]} 14. Bb2 {[%emt 0:02:05]} h5 {[%emt 0:02:59]} 15. Rae1 {[%emt 0:04:53]} h4 {[%emt 0:01:47]} 16. Nh1 {[%emt 0:06:03]} Qd7 {[%emt 0:13:40]} 17. Nf2 {[%emt 0:10:29]} Rad8 {[%emt 0:02:24]} 18. e4 {[%emt 0:11:43]} cxd4 {[%emt 0:13:16]} 19. cxd4 {[%emt 0:00:05]} dxe4 {[%emt 0:08:01]} 20. fxe4 {[%emt 0:00:09]} Nxd4 {[%emt 0:02:34]} 21. e5 {[%emt 0:00:06]} Ne6 {[%emt 0:07:47]} 22. Qc4 {[%emt 0:07:54]} Nd5 {[%emt 0:04:57]} 23. Qxh4 {[%emt 0:00:35]} Ndf4 {[%emt 0:04:49]} 24. Ne4 {[%emt 0:07:09]} Qb5 {[%emt 0:03:32]} 25. Qf2 {[%emt 0:08:56]} Re7 {[%emt 0:03:07]} 26. Nd6 {[%emt 0:00:30]} Qc5 {[%emt 0:02:37]} 27. Qxc5 {[%emt 0:00:38]} bxc5 {[%emt 0:00:29]} 28. Re4 {[%emt 0:08:29]} Rb8 {[%emt 0:03:35]} 29. Bc1 {[%emt 0:04:30]} Nd3 {[%emt 0:03:34]} 30. Rd1 {[%emt 0:04:16]} Rb3 {[%emt 0:01:57]} 31. Nc4 {[%emt 0:00:43]} Nd4 {[%emt 0:02:24]} 32. Bg5 {[%emt 0:02:23]} f6 {[%emt 0:01:59]} 33. Re3 {[%emt 0:03:48]} Nxe5 {[%emt 0:02:22]} 34. Rxb3 {[%emt 0:00:18]} Nxb3 {[%emt 0:00:14]} 35. Nxe5 {[%emt 0:00:40]} Rxe5 {[%emt 0:00:30]} 36. Bf4 {[%emt 0:00:27]} Re4 {[%emt 0:00:14]} 37. Bb8 {[%emt 0:06:44]} Ra4 {[%emt 0:03:07]} 38. Rd8+ {[%emt 0:00:00]} Kh7 {[%emt 0:00:11]} 39. Rd3 {[%emt 0:00:00]} c4 {[%emt 0:04:05]} 40. Rh3+ {[%emt 0:00:00]} Kg8 {[%emt 0:00:54]} 41. Bd6 {[%emt 0:49:55]} Nd4 {[%emt 0:55:52]} 42. Kf2 {[%emt 0:01:55]} Nb5 {[%emt 0:00:00]} 43. Bc5 {[%emt 0:00:00]} c3 {[%emt 0:00:00]} 44. Ke2 {[%emt 0:00:00]} c2 {[%emt 0:00:00]} 45. Be3 {[%emt 0:00:00]} Rxa3 {[%emt 0:00:00]} 46. Kd2 {[%emt 0:00:00]} Rc3 {[%emt 0:00:00]} 47. Kc1 {[%emt 0:00:00]} Kf7 {[%emt 0:00:00]} 48. Rf3 {[%emt 0:00:00]} Ke6 {[%emt 0:00:00]} 49. h4 {[%emt 0:00:00]} a6 {[%emt 0:00:00]} 50. h5 {[%emt 0:00:00]} Kd5 {[%emt 0:00:00]} 51. h6 {[%emt 0:00:00]} gxh6 {[%emt 0:00:00]} 52. Bxh6 {[%emt 0:00:00]} Rxf3 {[%emt 0:00:00]} 53. gxf3 {[%emt 0:00:00]} Nd4 {[%emt 0:00:00]} 54. Bg7 {[%emt 0:00:00]} f5 {[%emt 0:00:00]} 55. f4 {[%emt 0:00:00]} Kc4 {[%emt 0:00:00]} 56. Kd2 {[%emt 0:00:00]} a5 {[%emt 0:00:00]} 0-1

[Event "German Bundesliga 2022-23"]
[Site "Germany"]
[Date "2022.10.23"]
[Round "2.11"]
[White "Efimenko, Zahar"]
[Black "L'Ami, Erwin"]
[Result "1/2-1/2"]
[ECO "A05"]
[WhiteElo "2599"]
[BlackElo "2617"]
[Annotator "TA"]
[PlyCount "53"]
[EventDate "2022.10.21"]
[EventType "team-tourn"]
[EventCountry "GER"]
[SourceTitle "playchess.com"]
[Source "ChessBase"]
[SourceQuality "1"]
[TimeControl "40/6000+30:3000+30"]

{[%evp 10,53,31,10,28,14,13,0,5,6,12,0,0,-7,0,-15,-15,-8,-11,-11,-16,-9,6,6,7,6,11,9,13,8,14,0,0,0,0,0,0,0,0,-1,-1,-1,-1,-1,-1,0]} 1. Nf3 {[%emt 0:00:46]} Nf6 {[%emt 0:00:36]} 2. g3 {[%emt 0:00:18]} g6 {[%emt 0:00:19]} 3. Bg2 {[%emt 0:02:58]} Bg7 {[%emt 0:00:17]} 4. O-O {[%emt 0:00:41]} O-O {[%emt 0:00:28]} 5. d4 {[%emt 0:00:22]} d6 {[%emt 0:00:23]} 6. Nc3 {[%emt 0:06:07]} d5 {[%emt 0:08:08] A49: 1 d4 Nf6 2 Nf3 g6 3 g3: Anti-King's Indian systems.} 7. a4 {[%emt 0:03:54]} a5 {[%emt 0:04:59] The position is equal.} 8. Bf4 {[%emt 0:13:48]} c6 {[%emt 0:04:02]} 9. Re1 {[%emt 0:02:18]} Bf5 {[%emt 0:05:38] Against e4} 10. Ne5 {[%emt 0:06:19]} Nbd7 {[%emt 0:04:37]} 11. e4 {[%emt 0:06:52] [#]} dxe4 $146 {[%emt 0:02:31]} ({Predecessor:} 11... Nxe4 12. Nxe4 Bxe4 13. Bxe4 dxe4 14. Rxe4 Nf6 15. Re1 Nd5 16. Bd2 Qc8 17. Qf3 Nf6 {½-½ (38) Stefanou,D (1975)-Kouvidis,I (2053) Patras 2019}) 12. Nxe4 {[%emt 0:01:39]} Nxe5 {[%emt 0:02:02]} 13. Bxe5 {[%emt 0:11:35]} Nxe4 {[%emt 0:00:51]} 14. Bxe4 {[%emt 0:00:10]} Bxe5 {[%emt 0:00:47]} 15. dxe5 {[%emt 0:00:48]} Qxd1 {[%emt 0:01:11]} 16. Raxd1 {[%emt 0:01:01]} Be6 {[%emt 0:00:08]} 17. f4 {[%emt 0:03:06]} Rfd8 {[%emt 0:02:21]} 18. Kf2 {[%emt 0:04:20]} Kf8 {[%emt 0:01:56]} 19. Ke3 {[%emt 0:01:09]} Ke8 {[%emt 0:02:17]} 20. h4 {[%emt 0:06:13]} h5 {[%emt 0:05:48]} 21. b3 {[%emt 0:06:33]} Bg4 {[%emt 0:02:21]} 22. Rd4 {[%emt 0:03:44]} Rxd4 {[%emt 0:01:41]} 23. Kxd4 {[%emt 0:00:03]} Kd7 {[%emt 0:00:45]} 24. Re3 {[%emt 0:01:23]} Rd8 {[%emt 0:09:58]} 25. Rd3 {[%emt 0:02:16] Threatens to win with Kc5+.} Kc7+ {[%emt 0:01:20]} 26. Ke3 {[%emt 0:01:24]} Rg8 {[%emt 0:01:42]} 27. Rd2 {[%emt 0:01:39] An interesting draw.  Weighted Error Value: White=0.06 (flawless) /Black=0.01 (flawless)} 1/2-1/2

[Event "German Bundesliga 2022-23"]
[Site "Germany"]
[Date "2022.10.23"]
[Round "2.11"]
[White "Heimann, Andreas"]
[Black "Baldauf, Marco"]
[Result "1/2-1/2"]
[ECO "B11"]
[WhiteElo "2573"]
[BlackElo "2506"]
[Annotator "TA"]
[PlyCount "65"]
[EventDate "2022.10.21"]
[EventType "team-tourn"]
[EventCountry "GER"]
[SourceTitle "playchess.com"]
[Source "ChessBase"]
[SourceQuality "1"]
[TimeControl "40/6000+30:3000+30"]

{[%evp 10,65,32,24,36,0,0,0,39,36,33,27,39,20,31,14,0,0,25,14,16,8,13,0,8,0,0,0,19,21,24,18,20,22,22,22,46,37,86,87,87,92,94,93,100,93,93,93,97,93,93,93,120,26,31,18,21,20]} 1. e4 {[%emt 0:00:04]} c6 {[%emt 0:00:06]} 2. Nc3 {[%emt 0:00:05]} d5 {[%emt 0:00:09]} 3. Nf3 {[%emt 0:00:04]} dxe4 {[%emt 0:05:40]} 4. Nxe4 {[%emt 0:00:15]} Nf6 {[%emt 0:00:04]} 5. Qe2 {[%emt 0:00:05]} Nxe4 {[%emt 0:00:05]} 6. Qxe4 {[%emt 0:00:04]} Qd5 {[%emt 0:01:26] B11: Caro-Kann: Two Knights Variation.} 7. Qh4 {[%emt 0:01:37]} Qe6+ {[%emt 0:00:06]} 8. Be2 {[%emt 0:00:20]} Qg4 {[%emt 0:00:05]} 9. Qg3 {[%emt 0:01:30]} Qxg3 {[%emt 0:00:34]} 10. hxg3 {[%emt 0:00:08]} g6 {[%emt 0:00:17]} 11. d4 {[%emt 0:00:26]} h5 {[%emt 0:18:34] [#]} 12. Ne5 $146 {[%emt 0:35:37]} ({Predecessor:} 12. Bg5 Bg7 13. O-O-O Bg4 14. Rhe1 e6 15. Ne5 Bxe2 16. Rxe2 O-O 17. g4 hxg4 18. Nxg4 {½-½ (48) Mamedov,R (2659)-Nihal,S (2612) Moscow 2019}) 12... Bg7 {[%emt 0:01:00]} 13. Bc4 {[%emt 0:00:07]} Rf8 {[%emt 0:09:41]} 14. Bf4 {[%emt 0:09:18]} Nd7 {[%emt 0:00:07]} 15. Nxd7 {[%emt 0:03:35]} Bxd7 {[%emt 0:00:09]} 16. O-O-O {[%emt 0:00:05]} O-O-O {[%emt 0:09:34]} 17. Rhe1 {[%emt 0:00:23]} Bf6 {[%emt 0:04:08]} 18. Be5 {[%emt 0:32:49]} Bxe5 {[%emt 0:03:26]} 19. Rxe5 {[%emt 0:00:36]} Rde8 {[%emt 0:07:37]} 20. Rde1 {[%emt 0:03:56]} Kd8 {[%emt 0:00:13]} 21. b4 {[%emt 0:00:20]} f6 {[%emt 0:07:10]} 22. R5e2 {[%emt 0:03:56][%cal Be5e2,Be2d2,Bd2d4][%mdl 32]} Bf5 {[%emt 0:11:40]} 23. d5 {[%emt 0:01:28]} Kd7 {[%emt 0:02:54]} (23... b5 $14 24. Bb3 cxd5) 24. dxc6+ $16 {[%emt 0:01:45]} bxc6 {[%emt 0:00:03]} 25. Rd2+ {[%emt 0:00:09]} Kc7 {[%emt 0:00:43] [#]} 26. Be6 $1 {[%emt 0:00:28]} Bxe6 {[%emt 0:02:13]} 27. Rxe6 {[%emt 0:00:06][%mdl 4096] Endgame KRR-KRR} Rf7 {[%emt 0:00:02]} 28. Rd4 {[%emt 0:01:18]} Rb8 {[%emt 0:07:09]} 29. a4 {[%emt 0:03:06]} a5 {[%emt 0:00:04]} 30. c3 {[%emt 0:00:16] aiming for Rc4.} ({Don't do} 30. bxa5 Ra8 $14) 30... Rb6 {[%emt 0:01:54][%cal Oc6c5] [#]} 31. Kc2 {[%emt 0:02:53] White has more active pieces.} ({Much less strong is} 31. bxa5 Ra6 $14) (31. Rde4 $1 $16) 31... axb4 $11 {[%emt 0:05:05]} 32. cxb4 {[%emt 0:01:39]} c5 $1 {[%emt 0:00:04]} 33. Rd7+ {[%emt 0:04:38] Weighted Error Value: White=0.13 (very precise) /Black=0.07 (flawless)} 1/2-1/2

[Event "German Bundesliga 2022-23"]
[Site "Germany"]
[Date "2022.10.23"]
[Round "2.11"]
[White "Delchev, Aleksander"]
[Black "Amin, Bassem"]
[Result "0-1"]
[ECO "C49"]
[WhiteElo "2503"]
[BlackElo "2667"]
[Annotator "ChessBase"]
[PlyCount "114"]
[EventDate "2022.10.21"]
[EventType "team-tourn"]
[EventCountry "GER"]
[SourceTitle "playchess.com"]
[Source "ChessBase"]
[SourceQuality "1"]
[TimeControl "40/6000+30:3000+30"]

1. e4 {[%emt 0:00:03]} e5 {[%emt 0:01:27]} 2. Nf3 {[%emt 0:00:04]} Nc6 {[%emt 0:00:07]} 3. Nc3 {[%emt 0:00:06]} Nf6 {[%emt 0:00:34]} 4. Bb5 {[%emt 0:00:06]} Bb4 {[%emt 0:01:54]} 5. O-O {[%emt 0:00:07]} O-O {[%emt 0:00:09]} 6. d3 {[%emt 0:00:04]} Bxc3 {[%emt 0:01:27]} 7. bxc3 {[%emt 0:00:05]} d6 {[%emt 0:00:07]} 8. Bg5 {[%emt 0:00:22]} Qe7 {[%emt 0:00:35]} 9. Re1 {[%emt 0:00:22]} Nd8 {[%emt 0:00:07]} 10. d4 {[%emt 0:00:10]} Ne6 {[%emt 0:00:05]} 11. Bd2 {[%emt 0:00:07]} c5 {[%emt 0:01:32]} 12. a4 {[%emt 0:00:23]} Nc7 {[%emt 0:06:26]} 13. Bd3 {[%emt 0:00:36]} Bg4 {[%emt 0:00:16]} 14. h3 {[%emt 0:05:30]} Bh5 {[%emt 0:06:10]} 15. d5 {[%emt 0:11:41]} h6 {[%emt 0:04:51]} 16. c4 {[%emt 0:00:29]} Nh7 {[%emt 0:15:10]} 17. g4 {[%emt 0:00:30]} Bg6 {[%emt 0:00:02]} 18. Kg2 {[%emt 0:03:58]} Na6 {[%emt 0:05:40]} 19. c3 {[%emt 0:13:50]} Rac8 {[%emt 0:00:20]} 20. Rh1 {[%emt 0:09:27]} Nb8 {[%emt 0:05:33]} 21. Qe2 {[%emt 0:05:28]} Nd7 {[%emt 0:06:36]} 22. Nh2 {[%emt 0:02:45]} Rfe8 {[%emt 0:16:39]} 23. Nf1 {[%emt 0:01:06]} Nhf8 {[%emt 0:00:56]} 24. h4 {[%emt 0:09:11]} Bh7 {[%emt 0:01:28]} 25. h5 {[%emt 0:02:07]} Rb8 {[%emt 0:08:39]} 26. Ng3 {[%emt 0:01:23]} f6 {[%emt 0:01:50]} 27. a5 {[%emt 0:00:05]} Rec8 {[%emt 0:01:31]} 28. Rhb1 {[%emt 0:00:30]} Qd8 {[%emt 0:00:40]} 29. Be3 {[%emt 0:01:12]} Rc7 {[%emt 0:04:12]} 30. Bc2 {[%emt 0:04:54]} b6 {[%emt 0:04:17]} 31. a6 {[%emt 0:01:59]} Qe7 {[%emt 0:04:18]} 32. f3 {[%emt 0:02:21]} Re8 {[%emt 0:01:39]} 33. Ba4 {[%emt 0:01:34]} Qd8 {[%emt 0:00:09]} 34. Bb5 {[%emt 0:01:19]} Re7 {[%emt 0:01:22]} 35. Kf2 {[%emt 0:01:56]} Qb8 {[%emt 0:01:23]} 36. Rg1 {[%emt 0:00:07]} Kh8 {[%emt 0:01:49]} 37. Qd2 {[%emt 0:00:05]} Qd8 {[%emt 0:00:52]} 38. Rg2 {[%emt 0:01:14]} Nb8 {[%emt 0:03:56]} 39. Rag1 {[%emt 0:04:12]} Bg8 {[%emt 0:01:53]} 40. Nf5 {[%emt 0:04:00]} Nh7 {[%emt 0:00:07]} 41. Bxh6 {[%emt 1:09:13]} gxh6 {[%emt 0:53:23]} 42. Qxh6 {[%emt 0:00:11]} Rg7 {[%emt 0:00:00]} 43. Nh4 {[%emt 0:00:00]} Bf7 {[%emt 0:00:00]} 44. Ng6+ {[%emt 0:00:00]} Kg8 {[%emt 0:00:00]} 45. g5 {[%emt 0:00:00]} fxg5 {[%emt 0:00:00]} 46. Rxg5 {[%emt 0:00:00]} Bxg6 {[%emt 0:00:00]} 47. hxg6 {[%emt 0:00:00]} Nxg5 {[%emt 0:00:00]} 48. Rxg5 {[%emt 0:00:00]} Qf6 {[%emt 0:00:00]} 49. Be8 {[%emt 0:00:00]} Qf4 {[%emt 0:00:00]} 50. Bf7+ {[%emt 0:00:00]} Rcxf7 {[%emt 0:00:00]} 51. gxf7+ {[%emt 0:00:00]} Qxf7 {[%emt 0:00:00]} 52. Rh5 {[%emt 0:00:00]} Qg6 {[%emt 0:00:00]} 53. Qh8+ {[%emt 0:00:00]} Kf7 {[%emt 0:00:00]} 54. Rf5+ {[%emt 0:00:00]} Ke7 {[%emt 0:00:00]} 55. Qf8+ {[%emt 0:00:00]} Kd7 {[%emt 0:00:00]} 56. Ke3 {[%emt 0:00:00]} Kc7 {[%emt 0:00:00]} 57. Kd3 {[%emt 0:00:00]} Rd7 {[%emt 0:00:00]} 0-1